fUST/lending_fUST_20240323
["ID","MTS","AMOUNT","RATE_DAILY","PERIOD"]
[320074586,1711138235932,-500.0,0.00024657,2]
[320074587,1711138235942,-500.0,0.00024657,2]
[320074588,1711138235952,-500.0,0.00024657,2]
[320074589,1711138235962,-500.0,0.00024657,2]
[320074590,1711138235972,-500.0,0.00024657,2]
[320074591,1711138235982,-500.0,0.00024657,2]
[320074592,1711138235993,-500.0,0.00024657,2]
[320074593,1711138236004,-500.0,0.00024657,2]
[320074594,1711138236013,-500.0,0.00024657,2]
[320074595,1711138236024,-500.0,0.00024657,2]
[320074596,1711138236034,-602.36,0.00024657,2]
[320074597,1711138236044,-500.0,0.00024657,2]
[320074598,1711138236055,-500.0,0.00024657,2]
[320074599,1711138236065,-500.0,0.00024657,2]
[320074600,1711138236076,-500.0,0.00024657,2]
[320074601,1711138236087,-1232.98,0.00024657,2]
[320074602,1711138236097,-155.0,0.00024657,2]
[320074603,1711138236108,-500.0,0.00024657,2]
[320074604,1711138236124,-500.0,0.00024657,2]
[320074605,1711138236135,-500.0,0.00024657,2]
[320074606,1711138236145,-500.0,0.00024657,2]
[320074607,1711138236156,-501.76964106,0.00024657,2]
[320074608,1711138236166,-500.0,0.00024657,2]
[320074609,1711138236176,-503.0735052,0.00024657,2]
[320074610,1711138236186,-504.7,0.00024657,2]
[320074611,1711138236197,-341.327133,0.00024657,2]
[320074612,1711138236208,-2039.28,0.00024657,2]
[320074613,1711138236218,-500.0,0.00024657,2]
[320074614,1711138236229,-500.0,0.00024657,2]
[320074615,1711138236239,-500.0,0.00024657,2]
[320074616,1711138236250,-635.22,0.00024657,2]
[320074617,1711138236261,-500.0,0.00024657,2]
[320074618,1711138236271,-368.83574321,0.00024657,2]
[320074619,1711138236281,-500.0,0.00024657,2]
[320074620,1711138236292,-1213.34,0.00024657,2]
[320074621,1711138236303,-500.0,0.00024657,2]
[320074622,1711138236328,-500.0,0.00024657,2]
[320074623,1711138236339,-500.0,0.00024657,2]
[320074624,1711138236349,-504.88,0.00024657,2]
[320074625,1711138236361,-500.0,0.00024657,2]
[320074626,1711138236375,-17273.15,0.00024657,2]
[320074627,1711138236386,-1730.51,0.00024657,2]
[320074628,1711138236397,-17405.76,0.00024657,2]
[320074629,1711138236408,-875.9,0.00024657,2]
[320074630,1711138236418,-500.0,0.00024657,2]
[320074631,1711138236430,-4076.38,0.00024657,2]
[320074632,1711138236441,-500.0,0.00024657,2]
[320074633,1711138236452,-500.3493261,0.00024657,2]
[320074634,1711138236463,-2000.0,0.00024657,2]
[320074635,1711138236473,-500.0,0.00024657,2]
[320074636,1711138236483,-500.0,0.00024657,2]
[320074637,1711138236494,-500.0,0.00024657,2]
[320074638,1711138236504,-2729.43,0.00024657,2]
[320074639,1711138236514,-500.0,0.00024657,2]
[320074640,1711138236524,-500.0,0.00024657,2]
[320074641,1711138236534,-500.0,0.00024657,2]
[320074642,1711138236543,-500.0,0.00024657,2]
[320074643,1711138236553,-500.0,0.00024657,2]
[320074644,1711138236562,-500.0,0.00024657,2]
[320074645,1711138236572,-1606.63,0.00024657,2]
[320074646,1711138236582,-500.0,0.00024657,2]
[320074647,1711138236592,-500.0,0.00024657,2]
[320074648,1711138236601,-500.0,0.00024657,2]
[320074649,1711138236615,-500.0,0.00024657,2]
[320074650,1711138236625,-500.0,0.00024657,2]
[320074651,1711138236634,-500.0,0.00024657,2]
[320074652,1711138236644,-500.0,0.00024657,2]
[320074653,1711138236655,-22541.3,0.00024657,2]
[320074654,1711138236664,-188.02131333,0.00024657,2]
[320074655,1711138236675,-500.0,0.00024657,2]
[320074656,1711138236685,-500.0,0.00024657,2]
[320074657,1711138236696,-500.0,0.00024657,2]
[320074658,1711138236706,-154.82968734,0.00024657,2]
[320074659,1711138236716,-500.0,0.00024657,2]
[320074660,1711138236725,-8064.11,0.00024657,2]
[320074661,1711138236735,-500.0,0.00024657,2]
[320074662,1711138236745,-3693.8,0.00024657,2]
[320074663,1711138236755,-500.0,0.00024657,2]
[320074664,1711138236765,-500.0,0.00024657,2]
[320074665,1711138236775,-500.0,0.00024657,2]
[320074666,1711138236785,-1260.28,0.00024657,2]
[320074667,1711138236795,-500.0,0.00024657,2]
[320074668,1711138236805,-500.0,0.00024657,2]
[320074669,1711138236815,-500.0,0.00024657,2]
[320074670,1711138236825,-500.0,0.00024657,2]
[320074671,1711138236835,-500.0,0.00024657,2]
[320074672,1711138236845,-209.97294759,0.00024657,2]
[320074673,1711138236854,-151.0,0.00024657,2]
[320074674,1711138236869,-500.0,0.00024657,2]
[320074675,1711138236879,-5128.36066154,0.00025,2]
[320074676,1711138236889,-3195.614577,0.00025027,2]
[320074677,1711138236899,-153.0,0.00025041,2]
[320074678,1711138236910,-153.0,0.00025041,2]
[320074679,1711138236920,-153.0,0.00025041,2]
[320074680,1711138236931,-153.0,0.00025041,2]
[320074681,1711138236941,-161.4575979,0.00025073,2]
[320074682,1711138236951,-153.0,0.00025178,2]
[320074683,1711138236961,-500.0,0.00025205,2]
[320074684,1711138236971,-500.0,0.00025205,2]
[320074685,1711138236981,-500.0,0.00025205,2]
[320074686,1711138236990,-500.0,0.00025205,2]
[320074687,1711138237000,-500.0,0.00025205,2]
[320074688,1711138237010,-500.0,0.00025205,2]
[320074689,1711138237019,-503.18262879,0.00025205,2]
[320074690,1711138237029,-500.9308153,0.00025205,2]
[320074691,1711138237039,-500.0,0.00025205,2]
[320074692,1711138237048,-500.0,0.00025205,2]
[320074693,1711138237057,-500.0,0.00025205,2]
[320074694,1711138237067,-500.0,0.00025205,2]
[320074695,1711138237076,-500.0,0.00025205,2]
[320074696,1711138237086,-500.0,0.00025205,2]
[320074697,1711138237095,-500.37151895,0.00025205,2]
[320074698,1711138237104,-500.0,0.00025205,2]
[320074699,1711138237117,-499.8305,0.00025205,2]
[320074700,1711138237126,-500.0,0.00025205,2]
[320074701,1711138237135,-500.0,0.00025205,2]
[320074702,1711138237144,-500.0,0.00025205,2]
[320074703,1711138237154,-500.0,0.00025205,2]
[320074704,1711138237164,-500.0,0.00025205,2]
[320074705,1711138237174,-500.0,0.00025205,2]
[320074706,1711138237184,-500.0,0.00025205,2]
[320074707,1711138237194,-719.98,0.00025205,2]
[320074708,1711138237203,-500.0,0.00025205,2]
[320074709,1711138237212,-321.85747366,0.00025205,2]
[320074710,1711138237222,-500.0,0.00025205,2]
[320074711,1711138237231,-500.0,0.00025205,2]
[320074712,1711138237240,-1446.03,0.00025205,2]
[320074713,1711138237250,-500.0,0.00025205,2]
[320074714,1711138237259,-500.0,0.00025205,2]
[320074715,1711138237270,-947.68,0.00025205,2]
[320074716,1711138237279,-1563.51,0.00025205,2]
[320074717,1711138237289,-500.0,0.00025205,2]
[320074718,1711138237300,-527.71,0.00025205,2]
[320074719,1711138237310,-500.0,0.00025205,2]
[320074720,1711138237320,-500.0,0.00025205,2]
[320074721,1711138237330,-500.0,0.00025205,2]
[320074722,1711138237340,-609.08,0.00025205,2]
[320074723,1711138237351,-724.01,0.00025205,2]
[320074724,1711138237365,-1641.17,0.00025205,2]
[320074725,1711138237377,-500.0,0.00025205,2]
[320074726,1711138237387,-500.0,0.00025205,2]
[320074727,1711138237397,-500.0,0.00025205,2]
[320074728,1711138237406,-500.0,0.00025205,2]
[320074729,1711138237416,-763.96,0.00025205,2]
[320074730,1711138237426,-500.0,0.00025205,2]
[320074731,1711138237436,-500.0,0.00025205,2]
[320074732,1711138237445,-1134.45,0.00025205,2]
[320074733,1711138237455,-500.0,0.00025205,2]
[320074734,1711138237464,-785.99,0.00025205,2]
[320074735,1711138237474,-603.58,0.00025205,2]
[320074736,1711138237484,-500.0,0.00025205,2]
[320074737,1711138237494,-536.42,0.00025205,2]
[320074738,1711138237504,-1120.54,0.00025205,2]
[320074739,1711138237515,-500.0,0.00025205,2]
[320074740,1711138237526,-257.5723004,0.00025205,2]
[320074741,1711138237536,-2653.05,0.00025205,2]
[320074742,1711138237546,-500.0,0.00025205,2]
[320074743,1711138237556,-500.0,0.00025205,2]
[320074744,1711138237567,-500.0,0.00025205,2]
[320074745,1711138237577,-500.0,0.00025205,2]
[320074746,1711138237586,-500.0,0.00025205,2]
[320074747,1711138237595,-500.0,0.00025205,2]
[320074748,1711138237604,-500.0,0.00025205,2]
[320074749,1711138237617,-500.0,0.00025205,2]
[320074750,1711138237627,-500.0,0.00025205,2]
[320074751,1711138237638,-500.0,0.00025205,2]
[320074752,1711138237648,-500.0,0.00025205,2]
[320074753,1711138237657,-500.0,0.00025205,2]
[320074754,1711138237666,-500.0,0.00025205,2]
[320074755,1711138237676,-500.0,0.00025205,2]
[320074756,1711138237685,-500.0,0.00025205,2]
[320074757,1711138237696,-500.0,0.00025205,2]
[320074758,1711138237706,-500.0,0.00025205,2]
[320074760,1711138237716,-500.0,0.00025205,2]
[320074761,1711138237726,-1336.21,0.00025205,2]
[320074762,1711138237736,-500.0,0.00025205,2]
[320074763,1711138237746,-500.0,0.00025205,2]
[320074764,1711138237755,-500.0,0.00025205,2]
[320074765,1711138237764,-500.0,0.00025205,2]
[320074766,1711138237774,-500.0,0.00025205,2]
[320074767,1711138237783,-500.0,0.00025205,2]
[320074768,1711138237792,-500.0,0.00025205,2]
[320074769,1711138237802,-405.92032026,0.00025205,2]
[320074771,1711138237812,-2465.47,0.00025205,2]
[320074774,1711138237822,-518.46,0.00025205,2]
[320074777,1711138237831,-299.63828142,0.00025205,2]
[320074778,1711138237840,-500.0,0.00025205,2]
[320074779,1711138237849,-565.56,0.00025205,2]
[320074780,1711138237858,-25002.29,0.00025205,2]
[320074781,1711138237870,-1065.06,0.00025205,2]
[320074782,1711138237879,-1680.12,0.00025205,2]
[320074783,1711138237888,-500.0,0.00025205,2]
[320074784,1711138237897,-3025.63,0.00025205,2]
[320074785,1711138237906,-500.0,0.00025205,2]
[320074786,1711138237915,-629.56,0.00025205,2]
[320074788,1711138237924,-500.0,0.00025205,2]
[320074789,1711138237933,-1560.4,0.00025205,2]
[320074791,1711138237942,-1483.94,0.00025205,2]
[320074793,1711138237951,-500.0,0.00025205,2]
[320074795,1711138237961,-16156.79,0.00025205,2]
[320074797,1711138237970,-1738.51,0.00025205,2]
[320074799,1711138237980,-500.0,0.00025205,2]
[320074801,1711138237989,-500.0,0.00025205,2]
[320074803,1711138237998,-500.0,0.00025205,2]
[320074805,1711138238008,-602.36,0.00025205,2]
[320074807,1711138238017,-500.0,0.00025205,2]
[320074809,1711138238026,-500.0,0.00025205,2]
[320074811,1711138238035,-1232.98,0.00025205,2]
[320074813,1711138238044,-500.0,0.00025205,2]
[320074815,1711138238054,-504.7,0.00025205,2]
[320074817,1711138238063,-2039.28,0.00025205,2]
[320074819,1711138238072,-500.0,0.00025205,2]
[320074820,1711138238082,-635.22,0.00025205,2]
[320074821,1711138238091,-500.0,0.00025205,2]
[320074822,1711138238100,-1213.34,0.00025205,2]
[320074823,1711138238109,-504.88,0.00025205,2]
[320074824,1711138238121,-500.0,0.00025205,2]
[320074825,1711138238130,-17273.15,0.00025205,2]
[320074826,1711138238139,-1730.51,0.00025205,2]
[320074827,1711138238148,-17405.76,0.00025205,2]
[320074828,1711138238158,-875.9,0.00025205,2]
[320074829,1711138238168,-4076.38,0.00025205,2]
[320074830,1711138238177,-200.0,0.00025205,2]
[320074831,1711138238187,-500.0,0.00025205,2]
[320074832,1711138238197,-500.0,0.00025205,2]
[320074833,1711138238206,-2729.43,0.00025205,2]
[320074834,1711138238215,-473.44998683,0.00025205,2]
[320074835,1711138238225,-500.0,0.00025205,2]
[320074836,1711138238235,-500.0,0.00025205,2]
[320074838,1711138238244,-500.0,0.00025205,2]
[320074840,1711138238353,-500.0,0.00025205,2]
[320074841,1711138238364,-1606.63,0.00025205,2]
[320074842,1711138238374,-500.0,0.00025205,2]
[320074843,1711138238383,-500.0,0.00025205,2]
[320074844,1711138238393,-500.0,0.00025205,2]
[320074845,1711138238403,-22541.3,0.00025205,2]
[320074846,1711138238412,-500.0,0.00025205,2]
[320074847,1711138238422,-500.0,0.00025205,2]
[320074848,1711138238431,-8064.11,0.00025205,2]
[320074849,1711138238440,-3693.8,0.00025205,2]
[320074850,1711138238451,-500.0,0.00025205,2]
[320074851,1711138238461,-1260.28,0.00025205,2]
[320074852,1711138238470,-500.0,0.00025205,2]
[320074853,1711138238479,-153.0,0.0002537,2]
[320074854,1711138238488,-153.0,0.0002537,2]
[320074855,1711138238498,-153.0,0.0002537,2]
[320074856,1711138238507,-153.0,0.0002537,2]
[320074857,1711138238516,-153.0,0.0002537,2]
[320074858,1711138238526,-5069.2697757,0.00025499,2]
[320074859,1711138238535,-1500.0,0.00025603,2]
[320074860,1711138238545,-687.77022552,0.00025703,2]
[320074861,1711138238554,-290.32753414,0.00025751,2]
[320074862,1711138238563,-284.43540265,0.00025751,2]
[320074863,1711138238572,-3142.73928404,0.00025751,2]
[320074864,1711138238581,-154.92253773,0.00025751,2]
[320074865,1711138238590,-150.0,0.00025751,2]
[320074866,1711138238599,-5426.75074665,0.00025751,7]
[320074867,1711138238609,-250.0,0.00025751,2]
[320074868,1711138238621,-154.87609812,0.00025751,2]
[320074869,1711138238630,-455.05544217,0.00025751,2]
[320074871,1711138238641,-1000.30590547,0.00025751,2]
[320074872,1711138238650,-3995.79001961,0.00025751,2]
[320074873,1711138238659,-151.80276999,0.00025751,2]
[320074874,1711138238668,-151.80276999,0.00025751,2]
[320074875,1711138238678,-187.57184153,0.00025751,2]
[320074877,1711138238687,-404.89614019,0.00025751,2]
[320074878,1711138238696,-1961.96826851,0.00025752,2]
[320074879,1711138238705,-683.2104041,0.00025752,2]
[320074880,1711138238715,-500.0,0.00025753,2]
[320074881,1711138238724,-500.0,0.00025753,2]
[320074883,1711138238733,-500.0,0.00025753,2]
[320074885,1711138238742,-500.0,0.00025753,2]
[320074886,1711138238753,-500.0,0.00025753,2]
[320074889,1711138238763,-500.0,0.00025753,2]
[320074890,1711138238772,-500.0,0.00025753,2]
[320074892,1711138238781,-500.0,0.00025753,2]
[320074894,1711138238790,-500.0,0.00025753,2]
[320074896,1711138238799,-500.0,0.00025753,2]
[320074898,1711138238808,-500.0,0.00025753,2]
[320074900,1711138238817,-500.0,0.00025753,2]
[320074902,1711138238826,-500.0,0.00025753,2]
[320074904,1711138238835,-500.0,0.00025753,2]
[320074906,1711138238844,-500.0,0.00025753,2]
[320074907,1711138238852,-500.0,0.00025753,2]
[320074909,1711138238861,-719.98,0.00025753,2]
[320074911,1711138238874,-500.0,0.00025753,2]
[320074913,1711138238883,-500.0,0.00025753,2]
[320074915,1711138238893,-1446.03,0.00025753,2]
[320074917,1711138238902,-500.0,0.00025753,2]
[320074919,1711138238911,-500.0,0.00025753,2]
[320074921,1711138238920,-947.68,0.00025753,2]
[320074923,1711138238929,-1563.51,0.00025753,2]
[320074925,1711138238938,-500.0,0.00025753,2]
[320074927,1711138238948,-527.71,0.00025753,2]
[320074929,1711138238957,-500.0,0.00025753,2]
[320074931,1711138238966,-353.12306953,0.00025753,2]
[320074933,1711138238976,-609.08,0.00025753,2]
[320074935,1711138238985,-724.01,0.00025753,2]
[320074937,1711138238996,-151.0,0.00025753,2]
[320074939,1711138239006,-500.0,0.00025753,2]
[320074941,1711138239016,-1641.17,0.00025753,2]
[320074943,1711138239026,-500.0,0.00025753,2]
[320074945,1711138239035,-500.0,0.00025753,2]
[320074947,1711138239045,-215.492528,0.00025753,2]
[320074949,1711138239055,-500.0,0.00025753,2]
[320074951,1711138239064,-215.492528,0.00025753,2]
[320074953,1711138239076,-763.96,0.00025753,2]
[320074955,1711138239085,-500.0,0.00025753,2]
[320074957,1711138239098,-500.0,0.00025753,2]
[320074959,1711138239108,-1134.45,0.00025753,2]
[320074961,1711138239119,-500.0,0.00025753,2]
[320074963,1711138239128,-785.99,0.00025753,2]
[320074965,1711138239138,-603.58,0.00025753,2]
[320074967,1711138239147,-500.0,0.00025753,2]
[320074969,1711138239156,-536.42,0.00025753,2]
[320074971,1711138239166,-1120.54,0.00025753,2]
[320074973,1711138239175,-500.0,0.00025753,2]
[320074975,1711138239186,-2653.05,0.00025753,2]
[320074977,1711138239195,-500.0,0.00025753,2]
[320074979,1711138239204,-500.0,0.00025753,2]
[320074981,1711138239213,-500.0,0.00025753,2]
[320074982,1711138239222,-151.0,0.00025753,2]
[320074984,1711138239231,-500.0,0.00025753,2]
[320074986,1711138239241,-500.0,0.00025753,2]
[320074988,1711138239250,-500.0,0.00025753,2]
[320074990,1711138239259,-151.0,0.00025753,2]
[320074992,1711138239268,-500.0,0.00025753,2]
[320074994,1711138239278,-500.0,0.00025753,2]
[320074997,1711138239301,-500.0,0.00025753,2]
[320074999,1711138239311,-151.0,0.00025753,2]
[320075001,1711138239319,-151.0,0.00025753,2]
[320075003,1711138239329,-500.0,0.00025753,2]
[320075005,1711138239337,-151.0,0.00025753,2]
[320075007,1711138239346,-500.0,0.00025753,2]
[320075009,1711138239355,-500.0,0.00025753,2]
[320075010,1711138239365,-1229.10227843,0.00025753,2]
[320075077,1711138240368,-270.37786055,0.00020873,2]
[320075079,1711138240377,-747.0,0.00020874,2]
[320075080,1711138240387,-159.84517134,0.00024457,2]
[320075082,1711138240396,-500.0,0.00025753,2]
[320075084,1711138240405,-151.0,0.00025753,2]
[320075086,1711138240414,-151.0,0.00025753,2]
[320075087,1711138240423,-500.0,0.00025753,2]
[320075089,1711138240432,-500.0,0.00025753,2]
[320075091,1711138240441,-500.0,0.00025753,2]
[320075093,1711138240450,-500.0,0.00025753,2]
[320075094,1711138240459,-500.0,0.00025753,2]
[320075096,1711138240468,-2465.47,0.00025753,2]
[320075099,1711138240477,-518.46,0.00025753,2]
[320075102,1711138240487,-500.0,0.00025753,2]
[320075104,1711138240495,-565.56,0.00025753,2]
[320075107,1711138240505,-25002.29,0.00025753,2]
[320075109,1711138240514,-1065.06,0.00025753,2]
[320075112,1711138240523,-1680.12,0.00025753,2]
[320075115,1711138240533,-500.0,0.00025753,2]
[320075117,1711138240542,-3025.63,0.00025753,2]
[320075119,1711138240551,-500.0,0.00025753,2]
[320075121,1711138240560,-629.56,0.00025753,2]
[320075123,1711138240570,-500.0,0.00025753,2]
[320075138,1711138240684,-1560.4,0.00025753,2]
[320075140,1711138240694,-1483.94,0.00025753,2]
[320075141,1711138240703,-624.989434,0.00025753,2]
[320075143,1711138240716,-1738.51,0.00025753,2]
[320075145,1711138240727,-16156.79,0.00025753,2]
[320075147,1711138240737,-540.37427772,0.00025753,2]
[320075149,1711138240746,-500.0,0.00025753,2]
[320075151,1711138240756,-602.36,0.00025753,2]
[320075152,1711138240764,-500.0,0.00025753,2]
[320075154,1711138240774,-500.0,0.00025753,2]
[320075156,1711138240783,-1232.98,0.00025753,2]
[320075158,1711138240792,-500.0,0.00025753,2]
[320075159,1711138240801,-504.7,0.00025753,2]
[320075161,1711138240810,-2039.28,0.00025753,2]
[320075163,1711138240819,-500.0,0.00025753,2]
[320075165,1711138240829,-635.22,0.00025753,2]
[320075166,1711138240838,-500.0,0.00025753,2]
[320075167,1711138240847,-1213.34,0.00025753,2]
[320075168,1711138240855,-504.88,0.00025753,2]
[320075169,1711138240866,-17273.15,0.00025753,2]
[320075170,1711138240875,-1730.51,0.00025753,2]
[320075172,1711138240884,-17405.76,0.00025753,2]
[320075174,1711138240893,-875.9,0.00025753,2]
[320075176,1711138240902,-4076.38,0.00025753,2]
[320075178,1711138240911,-151.0,0.00025753,2]
[320075180,1711138240921,-151.0,0.00025753,2]
[320075181,1711138240930,-500.0,0.00025753,2]
[320075184,1711138240940,-500.0,0.00025753,2]
[320075186,1711138240949,-2729.43,0.00025753,2]
[320075187,1711138240959,-500.0,0.00025753,2]
[320075189,1711138240968,-500.0,0.00025753,2]
[320075191,1711138240977,-1606.63,0.00025753,2]
[320075193,1711138240986,-151.0,0.00025753,2]
[320075195,1711138240996,-500.0,0.00025753,2]
[320075197,1711138241005,-22541.3,0.00025753,2]
[320075199,1711138241014,-500.0,0.00025753,2]
[320075201,1711138241024,-500.0,0.00025753,2]
[320075203,1711138241033,-8064.11,0.00025753,2]
[320075205,1711138241042,-3693.8,0.00025753,2]
[320075207,1711138241052,-500.0,0.00025753,2]
[320075209,1711138241061,-1260.28,0.00025753,2]
[320075211,1711138241070,-1500.0,0.00026,2]
[320075213,1711138241080,-735.2862035,0.00026,2]
[320075215,1711138241089,-153.0,0.00026192,2]
[320075217,1711138241098,-153.0,0.00026192,2]
[320075219,1711138241107,-153.0,0.00026192,2]
[320075221,1711138241118,-153.0,0.00026192,2]
[320075223,1711138241127,-422.5616968,0.00026192,2]
[320075225,1711138241136,-310.0398121,0.00026247,2]
[320075227,1711138241145,-500.0,0.00026301,2]
[320075229,1711138241154,-500.0,0.00026301,2]
[320075231,1711138241163,-451.72585333,0.00026301,2]
[320075233,1711138241173,-297.11841611,0.00026301,2]
[320075235,1711138241182,-500.0,0.00026301,2]
[320075237,1711138241194,-500.0,0.00026301,2]
[320075239,1711138241203,-500.0,0.00026301,2]
[320075241,1711138241212,-500.0,0.00026301,2]
[320075243,1711138241221,-500.0,0.00026301,2]
[320075245,1711138241231,-500.0,0.00026301,2]
[320075247,1711138241240,-500.0,0.00026301,2]
[320075248,1711138241249,-500.0,0.00026301,2]
[320075250,1711138241258,-719.98,0.00026301,2]
[320075253,1711138241268,-500.0,0.00026301,2]
[320075255,1711138241280,-500.0,0.00026301,2]
[320075257,1711138241289,-1446.03,0.00026301,2]
[320075259,1711138241299,-500.0,0.00026301,2]
[320075260,1711138241308,-947.68,0.00026301,2]
[320075262,1711138241318,-1563.51,0.00026301,2]
[320075264,1711138241328,-391.7853235,0.00026301,2]
[320075266,1711138241338,-527.71,0.00026301,2]
[320075268,1711138241347,-500.0,0.00026301,2]
[320075270,1711138241357,-609.08,0.00026301,2]
[320075272,1711138241367,-724.01,0.00026301,2]
[320075274,1711138241376,-1641.17,0.00026301,2]
[320075276,1711138241386,-500.0,0.00026301,2]
[320075278,1711138241395,-500.0,0.00026301,2]
[320075280,1711138241405,-215.492528,0.00026301,2]
[320075282,1711138241414,-215.492528,0.00026301,2]
[320075284,1711138241423,-500.0,0.00026301,2]
[320075286,1711138241432,-215.492528,0.00026301,2]
[320075289,1711138241442,-215.492528,0.00026301,2]
[320075291,1711138241451,-763.96,0.00026301,2]
[320075292,1711138241460,-390.72477065,0.00026301,2]
[320075294,1711138241469,-500.0,0.00026301,2]
[320075297,1711138241479,-500.0,0.00026301,2]
[320075299,1711138241488,-785.99,0.00026301,2]
[320075301,1711138241497,-1134.45,0.00026301,2]
[320075303,1711138241507,-603.58,0.00026301,2]
[320075305,1711138241516,-536.42,0.00026301,2]
[320075306,1711138241525,-1120.54,0.00026301,2]
[320075308,1711138241534,-2653.05,0.00026301,2]
[320075310,1711138241543,-500.0,0.00026301,2]
[320075312,1711138241552,-500.0,0.00026301,2]
[320075314,1711138241562,-500.0,0.00026301,2]
[320075317,1711138241571,-151.0,0.00026301,2]
[320075318,1711138241580,-151.0,0.00026301,2]
[320075321,1711138241590,-500.0,0.00026301,2]
[320075322,1711138241598,-500.0,0.00026301,2]
[320075324,1711138241608,-500.0,0.00026301,2]
[320075326,1711138241619,-151.0,0.00026301,2]
[320075328,1711138241628,-151.0,0.00026301,2]
[320075330,1711138241640,-500.0,0.00026301,2]
[320075332,1711138241648,-500.0,0.00026301,2]
[320075334,1711138241658,-500.0,0.00026301,2]
[320075336,1711138241667,-151.0,0.00026301,2]
[320075338,1711138241675,-151.0,0.00026301,2]
[320075340,1711138241685,-151.0,0.00026301,2]
[320075342,1711138241694,-151.0,0.00026301,2]
[320075344,1711138241704,-500.0,0.00026301,2]
[320075346,1711138241713,-500.0,0.00026301,2]
[320075348,1711138241723,-500.0,0.00026301,2]
[320075350,1711138241732,-500.0,0.00026301,2]
[320075352,1711138241741,-151.0,0.00026301,2]
[320075354,1711138241750,-500.0,0.00026301,2]
[320075356,1711138241759,-500.0,0.00026301,2]
[320075358,1711138241768,-500.0,0.00026301,2]
[320075360,1711138241777,-500.0,0.00026301,2]
[320075362,1711138241786,-2465.47,0.00026301,2]
[320075364,1711138241795,-518.46,0.00026301,2]
[320075366,1711138241807,-500.0,0.00026301,2]
[320075368,1711138241816,-565.56,0.00026301,2]
[320075370,1711138241825,-25002.29,0.00026301,2]
[320075372,1711138241836,-1065.06,0.00026301,2]
[320075374,1711138241845,-1680.12,0.00026301,2]
[320075376,1711138241854,-500.0,0.00026301,2]
[320075378,1711138241862,-3025.63,0.00026301,2]
[320075380,1711138241873,-500.0,0.00026301,2]
[320075382,1711138241882,-629.56,0.00026301,2]
[320075384,1711138241891,-500.0,0.00026301,2]
[320075386,1711138241899,-1560.4,0.00026301,2]
[320075388,1711138241908,-1483.94,0.00026301,2]
[320075390,1711138241917,-1738.51,0.00026301,2]
[320075392,1711138241926,-16156.79,0.00026301,2]
[320075394,1711138241935,-500.0,0.00026301,2]
[320075396,1711138241944,-602.36,0.00026301,2]
[320075397,1711138241954,-500.0,0.00026301,2]
[320075399,1711138241964,-500.0,0.00026301,2]
[320075401,1711138241974,-1232.98,0.00026301,2]
[320075403,1711138241983,-500.0,0.00026301,2]
[320075405,1711138241992,-504.7,0.00026301,2]
[320075407,1711138242001,-2039.28,0.00026301,2]